fUST/lending_fUST_20241025
["ID","MTS","AMOUNT","RATE_DAILY","PERIOD"]
[340799022,1729851031984,-266.721794,0.00011547,2]
[340799023,1729851031994,-266.721794,0.00011551,2]
[340799025,1729851032004,-266.721794,0.00011554,2]
[340799026,1729851032015,-266.721794,0.00011557,2]
[340799027,1729851032024,-266.721794,0.0001156,2]
[340799028,1729851032034,-266.721794,0.00011563,2]
[340799029,1729851032045,-266.721794,0.00011566,2]
[340799030,1729851032055,-266.721794,0.00011569,2]
[340799031,1729851032064,-266.721794,0.00011572,2]
[340799032,1729851032075,-266.721794,0.00011575,2]
[340799033,1729851032085,-266.721794,0.00011578,2]
[340799034,1729851032094,-200.06756207,0.00011581,2]
[340799090,1729851038356,-66.65423193,0.00011581,2]
[340799092,1729851038366,-265.94376807,0.00011584,2]
[340799096,1729851038388,-0.77802593,0.00011584,2]
[340799098,1729851038399,-266.721794,0.00011587,2]
[340799100,1729851038408,-232.50018007,0.0001159,2]
[340799254,1729851040059,-34.22161393,0.0001159,2]
[340799256,1729851040070,-266.721794,0.00011593,2]
[340799258,1729851040080,-5.86097204,0.00011596,2]
[340799260,1729851040093,-260.86082196,0.00011596,2]
[340799262,1729851040103,-266.721794,0.00011599,2]
[340799264,1729851040113,-266.721794,0.00011602,2]
[340799265,1729851040123,-300.0,0.00011603,2]
[340799267,1729851040135,-300.0,0.00011603,2]
[340799269,1729851040145,-2364.69385874,0.00011604,2]
[340799271,1729851040158,-2045.94061795,0.00011604,2]
[340799324,1729851045959,-2725.34135892,0.00011604,2]
[340799325,1729851121274,154.023,0.00022,60]
[340799328,1729851881698,732.1079829,0.00010615,2]
[340799334,1729852035552,2230.904919,0.00010792,2]
[340799335,1729852155593,210.747115,0.00010851,2]
[340799336,1729852156029,210.747115,0.00010881,2]
[340799337,1729852156342,210.747115,0.00010911,2]
[340799338,1729852156559,210.747115,0.00010941,2]
[340799339,1729852156810,210.747115,0.00010971,2]
[340799340,1729852157023,210.747115,0.00011,2]
[340799341,1729852191301,16833.6198179,0.00010771,2]
[340799374,1729852232086,-210.747115,0.0001103,2]
[340799375,1729852232098,-210.747115,0.0001106,2]
[340799376,1729852232107,-220.34305399,0.0001106,2]
[340799377,1729852232117,-210.747115,0.0001109,2]
[340799378,1729852232127,-210.747115,0.00011119,2]
[340799379,1729852232138,-210.747115,0.00011149,2]
[340799380,1729852232148,-925.6168726,0.0001116,2]
[340799381,1729852232158,-210.747115,0.00011179,2]
[340799382,1729852232167,-210.747115,0.00011209,2]
[340799383,1729852232177,-210.747115,0.00011238,2]
[340799384,1729852232187,-210.747115,0.00011268,2]
[340799385,1729852232196,-210.747115,0.00011298,2]
[340799386,1729852232206,-210.747115,0.00011328,2]
[340799387,1729852232215,-210.747115,0.00011357,2]
[340799388,1729852232225,-210.747115,0.00011387,2]
[340799389,1729852232236,-210.747115,0.00011417,2]
[340799390,1729852232245,-266.721794,0.00011605,2]
[340799391,1729852232256,-3172.45190801,0.0001192,2]
[340799392,1729852232266,-153.0,0.00012,2]
[340799393,1729852232275,-307.1154386,0.00012156,2]
[340799394,1729852232285,-300.0,0.00012274,2]
[340799395,1729852232294,-153.0,0.00012329,2]
[340799396,1729852232303,-300.0,0.00012602,2]
[340799397,1729852232314,-153.0,0.00012603,2]
[340799398,1729852232323,-153.0,0.00012603,2]
[340799399,1729852232333,-153.0,0.00012603,2]
[340799400,1729852232344,-153.0,0.00012603,2]
[340799401,1729852232355,-153.0,0.00012603,2]
[340799402,1729852232365,-151.2754534,0.00012877,2]
[340799403,1729852232375,-77.07055159,0.0001288,2]
[340799436,1729852238445,-726.22226811,0.0001288,2]
[340799438,1729852238456,-803.29281969,0.00012885,2]
[340799439,1729852238466,-803.29281969,0.0001289,2]
[340799441,1729852238475,-803.29281969,0.00012895,2]
[340799443,1729852238496,-1769.98126115,0.000129,2]
[340799445,1729852238508,-803.29281969,0.000129,2]
[340799447,1729852238521,-3935.10155682,0.000129,2]
[340799449,1729852238531,-11377.8060427,0.0001297,2]
[340799451,1729852238542,-613.70393964,0.0001297,2]
[340799453,1729852238552,-297.58600911,0.0001297,2]
[340799454,1729852238563,-501.19072759,0.00012973,2]
[340799457,1729852238572,-509.91140857,0.00012973,2]
[340799459,1729852238582,-500.46231833,0.00012973,2]
[340799460,1729852238593,-500.0,0.00012973,2]
[340799462,1729852238606,-524.39748121,0.00012973,2]
[340799464,1729852238616,-500.0,0.00012973,2]
[340799466,1729852238627,-379.51832963,0.00012973,2]
[340799468,1729852238638,-500.62371968,0.00012973,2]
[340799470,1729852238649,-500.0,0.00012973,2]
[340799472,1729852238660,-500.93367485,0.00012973,2]
[340799474,1729852238670,-500.0,0.00012973,2]
[340799475,1729852238682,-500.81986427,0.00012973,2]
[340799477,1729852238691,-500.0,0.00012973,2]
[340799479,1729852238701,-500.0,0.00012973,2]
[340799480,1729852238710,-262.75536119,0.00012973,2]
[340799482,1729852238719,-523.47586706,0.00012973,2]
[340799484,1729852238729,-161.97620818,0.00012973,2]
[340799485,1729852238739,-552.69917548,0.00012973,2]
[340799487,1729852238748,-325.28651991,0.00012973,2]
[340799489,1729852238758,-501.6496229,0.00012973,2]
[340799491,1729852238768,-500.0,0.00012973,2]
[340799493,1729852238778,-502.84952735,0.00012973,2]
[340799495,1729852238787,-500.0,0.00012973,2]
[340799496,1729852238797,-500.0,0.00012973,2]
[340799498,1729852238807,-500.96264485,0.00012973,2]
[340799500,1729852238817,-500.0,0.00012973,2]
[340799502,1729852238827,-500.0,0.00012973,2]
[340799503,1729852238836,-500.0,0.00012973,2]
[340799505,1729852238846,-500.82744298,0.00012973,2]
[340799507,1729852238855,-500.45454055,0.00012973,2]
[340799509,1729852238865,-500.97826855,0.00012973,2]
[340799510,1729852238875,-151.0,0.0001298,2]
[340799512,1729852238886,-151.0,0.0001298,2]
[340799514,1729852238898,-241.748352,0.0001298,2]
[340799516,1729852238909,-241.748352,0.0001298,2]
[340799518,1729852238919,-497.580291,0.0001298,2]
[340799520,1729852238930,-497.580291,0.0001298,2]
[340799521,1729852238939,-151.0,0.0001298,2]
[340799523,1729852238949,-151.0,0.0001298,2]
[340799525,1729852238960,-999.114577,0.0001298,2]
[340799527,1729852238971,-999.114577,0.0001298,2]
[340799529,1729852238981,-403.20391,0.0001298,2]
[340799531,1729852238991,-403.20391,0.0001298,2]
[340799533,1729852239001,-403.20391,0.0001298,2]
[340799534,1729852239013,-403.20391,0.0001298,2]
[340799536,1729852239024,-169.10232,0.0001298,2]
[340799538,1729852239034,-443.041159,0.0001298,2]
[340799540,1729852239044,-443.041159,0.0001298,2]
[340799542,1729852239055,-443.041159,0.0001298,2]
[340799544,1729852239065,-443.041159,0.0001298,2]
[340799546,1729852239076,-275.352272,0.0001298,2]
[340799548,1729852239086,-275.352272,0.0001298,2]
[340799550,1729852239101,-275.352272,0.0001298,2]
[340799551,1729852239111,-275.352272,0.0001298,2]
[340799553,1729852239122,-248.326197,0.0001298,2]
[340799555,1729852239132,-248.326197,0.0001298,2]
[340799557,1729852239143,-248.326197,0.0001298,2]
[340799559,1729852239154,-248.326197,0.0001298,2]
[340799561,1729852239165,-151.0,0.0001298,2]
[340799563,1729852239175,-151.884298,0.0001298,2]
[340799565,1729852239184,-151.0,0.0001298,2]
[340799566,1729852239195,-151.0,0.0001298,2]
[340799568,1729852239205,-164.301143,0.0001298,2]
[340799570,1729852239215,-164.301143,0.0001298,2]
[340799572,1729852239225,-164.301143,0.0001298,2]
[340799574,1729852239235,-164.301143,0.0001298,2]
[340799576,1729852239245,-152.105996,0.0001298,2]
[340799577,1729852239254,-200.243423,0.0001298,2]
[340799579,1729852239264,-200.243423,0.0001298,2]
[340799581,1729852239274,-200.243423,0.0001298,2]
[340799583,1729852239284,-200.243423,0.0001298,2]
[340799584,1729852239294,-300.99481,0.0001298,2]
[340799586,1729852239304,-300.99481,0.0001298,2]
[340799588,1729852239315,-350.603163,0.0001298,2]
[340799589,1729852239325,-350.603163,0.0001298,2]
[340799591,1729852239335,-461.086155,0.0001298,2]
[340799593,1729852239344,-461.086155,0.0001298,2]
[340799594,1729852239357,-300.99481,0.0001298,2]
[340799596,1729852239367,-300.99481,0.0001298,2]
[340799598,1729852239378,-350.603163,0.0001298,2]
[340799600,1729852239388,-350.603163,0.0001298,2]
[340799602,1729852239399,-461.086155,0.0001298,2]
[340799603,1729852239410,-461.086155,0.0001298,2]
[340799605,1729852239421,-151.0,0.0001298,2]
[340799607,1729852239430,-2042.751956,0.0001298,2]
[340799609,1729852239441,-151.0,0.0001298,2]
[340799611,1729852239451,-2042.751956,0.0001298,2]
[340799613,1729852239461,-151.0,0.0001298,2]
[340799615,1729852239471,-409.533245,0.0001298,2]
[340799616,1729852239481,-151.0,0.0001298,2]
[340799618,1729852239491,-409.533245,0.0001298,2]
[340799620,1729852239501,-208.251043,0.0001298,2]
[340799622,1729852239514,-151.0,0.0001298,2]
[340799623,1729852239524,-34133.418128,0.0001298,2]
[340799625,1729852239533,-1841.11181892,0.0001298,2]
[340799627,1729852239544,-151.0,0.0001299,2]
[340799629,1729852239555,-151.0,0.0001299,2]
[340799630,1729852239565,-151.420846,0.0001299,2]
[340799632,1729852239575,-151.0,0.0001299,2]
[340799634,1729852239585,-151.0,0.0001299,2]
[340799636,1729852239595,-173.519383,0.0001299,2]
[340799638,1729852239605,-173.519383,0.0001299,2]
[340799639,1729852239615,-173.519383,0.0001299,2]
[340799640,1729852239625,-173.519383,0.0001299,2]
[340799642,1729852239634,-151.0,0.0001299,2]
[340799644,1729852239644,-151.0,0.0001299,2]
[340799646,1729852239655,-151.0,0.0001299,2]
[340799647,1729852239665,-151.0,0.0001299,2]
[340799648,1729852239674,-151.0,0.0001299,2]
[340799649,1729852239684,-151.0,0.0001299,2]
[340799650,1729852239694,-151.0,0.0001299,2]
[340799651,1729852239704,-241.748352,0.0001299,2]
[340799652,1729852239719,-241.748352,0.0001299,2]
[340799653,1729852239729,-241.748352,0.0001299,2]
[340799654,1729852239738,-241.748352,0.0001299,2]
[340799655,1729852239748,-497.580291,0.0001299,2]
[340799657,1729852239758,-497.580291,0.0001299,2]
[340799659,1729852239768,-497.580291,0.0001299,2]
[340799661,1729852239778,-497.580291,0.0001299,2]
[340799663,1729852239788,-151.0,0.0001299,2]
[340799666,1729852239799,-999.114577,0.0001299,2]
[340799668,1729852239808,-151.0,0.0001299,2]
[340799671,1729852239819,-999.114577,0.0001299,2]
[340799674,1729852239829,-999.114577,0.0001299,2]
[340799677,1729852239839,-999.114577,0.0001299,2]
[340799678,1729852239849,-403.20391,0.0001299,2]
[340799680,1729852239859,-403.20391,0.0001299,2]
[340799683,1729852239869,-403.20391,0.0001299,2]
[340799685,1729852239879,-403.20391,0.0001299,2]
[340799687,1729852239889,-443.041159,0.0001299,2]
[340799689,1729852239899,-443.041159,0.0001299,2]
[340799691,1729852239909,-443.041159,0.0001299,2]
[340799693,1729852239919,-443.041159,0.0001299,2]
[340799695,1729852239929,-443.041159,0.0001299,2]
[340799697,1729852239939,-443.041159,0.0001299,2]
[340799699,1729852239949,-275.352272,0.0001299,2]
[340799701,1729852239959,-275.352272,0.0001299,2]
[340799703,1729852239969,-275.352272,0.0001299,2]
[340799705,1729852239979,-275.352272,0.0001299,2]
[340799707,1729852239990,-275.352272,0.0001299,2]
[340799710,1729852240000,-275.352272,0.0001299,2]
[340799712,1729852240010,-248.326197,0.0001299,2]
[340799714,1729852240020,-248.326197,0.0001299,2]
[340799716,1729852240030,-248.326197,0.0001299,2]
[340799718,1729852240039,-248.326197,0.0001299,2]
[340799720,1729852240050,-151.0,0.0001299,2]
[340799722,1729852240059,-151.0,0.0001299,2]
[340799724,1729852240069,-151.0,0.0001299,2]
[340799726,1729852240080,-56889.0302134,0.0001299,2]
[340799728,1729852240090,-164.301143,0.0001299,2]
[340799730,1729852240102,-164.301143,0.0001299,2]
[340799732,1729852240112,-3068.5196982,0.0001299,2]
[340799758,1729852240363,-164.301143,0.0001299,2]
[340799761,1729852240374,-164.301143,0.0001299,2]
[340799763,1729852240384,-200.243423,0.0001299,2]
[340799764,1729852240394,-200.243423,0.0001299,2]
[340799766,1729852240404,-200.243423,0.0001299,2]
[340799768,1729852240413,-200.243423,0.0001299,2]
[340799770,1729852240423,-200.243423,0.0001299,2]
[340799772,1729852240432,-200.243423,0.0001299,2]
[340799774,1729852240442,-300.99481,0.0001299,2]
[340799776,1729852240452,-300.99481,0.0001299,2]
[340799778,1729852240463,-300.99481,0.0001299,2]
[340799780,1729852240472,-350.603163,0.0001299,2]
[340799782,1729852240481,-350.603163,0.0001299,2]
[340799784,1729852240491,-350.603163,0.0001299,2]
[340799786,1729852240500,-461.086155,0.0001299,2]
[340799788,1729852240512,-461.086155,0.0001299,2]
[340799790,1729852240522,-461.086155,0.0001299,2]
[340799792,1729852240533,-300.99481,0.0001299,2]
[340799794,1729852240543,-300.99481,0.0001299,2]
[340799796,1729852240554,-300.99481,0.0001299,2]
[340799798,1729852240564,-350.603163,0.0001299,2]
[340799800,1729852240574,-461.086155,0.0001299,2]
[340799802,1729852240584,-350.603163,0.0001299,2]
[340799804,1729852240595,-461.086155,0.0001299,2]
[340799806,1729852240608,-461.086155,0.0001299,2]
[340799808,1729852240619,-350.603163,0.0001299,2]
[340799810,1729852240628,-151.0,0.0001299,2]
[340799812,1729852240638,-151.0,0.0001299,2]
[340799815,1729852240650,-2042.751956,0.0001299,2]
[340799817,1729852240661,-2042.751956,0.0001299,2]
[340799819,1729852240671,-151.0,0.0001299,2]
[340799821,1729852240681,-151.0,0.0001299,2]
[340799823,1729852240691,-2042.751956,0.0001299,2]
[340799825,1729852240701,-2042.751956,0.0001299,2]
[340799827,1729852240711,-246.345708,0.0001299,2]
[340799829,1729852240720,-409.533245,0.0001299,2]
[340799831,1729852240729,-409.533245,0.0001299,2]
[340799833,1729852240739,-151.0,0.0001299,2]
[340799834,1729852240748,-151.0,0.0001299,2]
[340799837,1729852240759,-409.533245,0.0001299,2]
[340799839,1729852240769,-409.533245,0.0001299,2]
[340799841,1729852240779,-151.0,0.0001299,2]
[340799843,1729852240789,-151.0,0.0001299,2]
[340799845,1729852240798,-207964.4985855,0.00013,2]
[340799847,1729852240809,-150.112233,0.00013,2]
[340799849,1729852240819,-151.0,0.00013,2]
[340799851,1729852240828,-151.0,0.00013,2]
[340799853,1729852240838,-254.497619,0.00013,2]
[340799855,1729852240849,-150.112233,0.00013,2]
[340799857,1729852240860,-151.0,0.00013,2]
[340799859,1729852240870,-151.0,0.00013,2]
[340799861,1729852240880,-173.519383,0.00013,2]
[340799862,1729852240890,-173.519383,0.00013,2]
[340799863,1729852240899,-151.0,0.00013,2]
[340799864,1729852240909,-151.0,0.00013,2]
[340799865,1729852240919,-241.748352,0.00013,2]
[340799866,1729852240928,-241.748352,0.00013,2]
[340799867,1729852240938,-150.112233,0.00013,2]
[340799868,1729852240948,-497.580291,0.00013,2]
[340799869,1729852240957,-497.580291,0.00013,2]
[340799871,1729852240967,-152.755083,0.00013,2]
[340799874,1729852240984,-999.114577,0.00013,2]
[340799876,1729852240997,-999.114577,0.00013,2]
[340799878,1729852241007,-403.20391,0.00013,2]
[340799879,1729852241017,-403.20391,0.00013,2]
[340799881,1729852241027,-443.041159,0.00013,2]
[340799882,1729852241037,-443.041159,0.00013,2]
[340799884,1729852241047,-275.352272,0.00013,2]
[340799885,1729852241057,-275.352272,0.00013,2]
[340799886,1729852241067,-248.326197,0.00013,2]
[340799887,1729852241078,-248.326197,0.00013,2]
[340799888,1729852241088,-151.0,0.00013,2]
[340799889,1729852241098,-164.301143,0.00013,2]
[340799890,1729852241108,-164.301143,0.00013,2]
[340799891,1729852241118,-200.243423,0.00013,2]
[340799892,1729852241127,-200.243423,0.00013,2]
[340799893,1729852241137,-300.99481,0.00013,2]
[340799894,1729852241147,-350.603163,0.00013,2]
[340799895,1729852241158,-461.086155,0.00013,2]
[340799896,1729852241168,-300.99481,0.00013,2]
[340799897,1729852241178,-461.086155,0.00013,2]
[340799898,1729852241188,-350.603163,0.00013,2]
[340799899,1729852241198,-151.0,0.00013,2]
[340799900,1729852241209,-2042.751956,0.00013,2]
[340799901,1729852241218,-2042.751956,0.00013,2]
[340799902,1729852241229,-150.112233,0.00013,2]
[340799903,1729852241239,-409.533245,0.00013,2]
[340799904,1729852241249,-151.0,0.00013,2]
[340799905,1729852241261,-409.533245,0.00013,2]
[340799906,1729852241271,-150.112233,0.000131,2]
[340799907,1729852241281,-150.112233,0.000131,2]
[340799908,1729852241291,-150.112233,0.000131,2]
[340799909,1729852241302,-150.112233,0.000131,2]
[340799910,1729852241312,-150.112233,0.000131,2]
[340799911,1729852241322,-150.112233,0.000131,2]
[340799912,1729852241332,-150.112233,0.000131,2]
[340799913,1729852241342,-150.112233,0.000131,2]
[340799914,1729852241354,-150.112233,0.000131,2]
[340799915,1729852241364,-306.0,0.00013151,2]
[340799916,1729852241374,-150.112233,0.000132,2]
[340799917,1729852241384,-150.112233,0.000132,2]
[340799918,1729852241395,-150.112233,0.000132,2]
[340799919,1729852241404,-150.112233,0.000132,2]
[340799920,1729852241414,-150.112233,0.000132,2]
[340799921,1729852241425,-500.0,0.00013247,2]
[340799922,1729852241435,-504.54835958,0.00013247,2]
[340799923,1729852241445,-500.0,0.00013247,2]
[340799924,1729852241455,-1000.0,0.00013247,2]
[340799925,1729852241465,-1000.0,0.00013247,2]
[340799926,1729852241475,-153.005726,0.00013247,2]
[340799927,1729852241486,-173.519383,0.00013247,2]
[340799928,1729852241496,-173.519383,0.00013247,2]
[340799929,1729852241506,-151.0,0.00013247,2]
[340799930,1729852241519,-151.0,0.00013247,2]
[340799931,1729852241529,-241.748352,0.00013247,2]
[340799932,1729852241539,-241.748352,0.00013247,2]
[340799933,1729852241550,-497.580291,0.00013247,2]
[340799934,1729852241561,-497.580291,0.00013247,2]
[340799935,1729852241570,-999.114577,0.00013247,2]
[340799936,1729852241580,-999.114577,0.00013247,2]
[340799937,1729852241594,-403.20391,0.00013247,2]
[340799938,1729852241606,-403.20391,0.00013247,2]
[340799939,1729852241617,-443.041159,0.00013247,2]
[340799940,1729852241627,-443.041159,0.00013247,2]
[340799941,1729852241638,-275.352272,0.00013247,2]
[340799942,1729852241647,-275.352272,0.00013247,2]
[340799943,1729852241657,-248.326197,0.00013247,2]
[340799944,1729852241667,-248.326197,0.00013247,2]
[340799945,1729852241677,-151.0,0.00013247,2]
[340799946,1729852241687,-164.301143,0.00013247,2]
[340799947,1729852241697,-164.301143,0.00013247,2]
[340799948,1729852241707,-200.243423,0.00013247,2]
[340799949,1729852241717,-200.243423,0.00013247,2]
[340799950,1729852241727,-300.99481,0.00013247,2]
[340799951,1729852241737,-350.603163,0.00013247,2]
[340799952,1729852241747,-461.086155,0.00013247,2]
[340799953,1729852241757,-300.99481,0.00013247,2]
[340799954,1729852241767,-461.086155,0.00013247,2]
[340799955,1729852241777,-350.603163,0.00013247,2]
[340799956,1729852241786,-151.0,0.00013247,2]
[340799957,1729852241796,-2042.751956,0.00013247,2]
[340799958,1729852241806,-2042.751956,0.00013247,2]
[340799959,1729852241816,-409.533245,0.00013247,2]
[340799960,1729852241825,-151.0,0.00013247,2]
[340799961,1729852241836,-409.533245,0.00013247,2]
[340799962,1729852241849,-150.112233,0.000133,2]
[340799963,1729852241860,-150.112233,0.000133,2]
[340799964,1729852241870,-150.112233,0.000133,2]
[340799965,1729852241880,-172.869,0.000133,2]
[340799966,1729852241890,-150.112233,0.000133,2]
[340799967,1729852241900,-150.112233,0.000133,2]
[340799968,1729852241909,-150.112233,0.000133,2]
[340799969,1729852241920,-150.112233,0.000133,2]
[340799970,1729852241931,-150.112233,0.000133,2]
[340799971,1729852241941,-150.112233,0.000133,2]
[340799972,1729852241950,-151.0,0.00013345,2]
[340799973,1729852241960,-443.041159,0.00013345,2]
[340799974,1729852241970,-443.041159,0.00013345,2]
[340799975,1729852241980,-275.352272,0.00013345,2]
[340799976,1729852241990,-275.352272,0.00013345,2]
[340799977,1729852241999,-151.0,0.00013345,2]
[340799978,1729852242009,-200.243423,0.00013345,2]
[340799979,1729852242019,-200.243423,0.00013345,2]
[340799980,1729852242029,-300.99481,0.00013345,2]
[340799981,1729852242039,-350.603163,0.00013345,2]
[340799982,1729852242049,-461.086155,0.00013345,2]
[340799983,1729852242060,-300.99481,0.00013345,2]
[340799984,1729852242069,-461.086155,0.00013345,2]
[340799985,1729852242079,-350.603163,0.00013345,2]
[340799986,1729852242088,-2042.751956,0.00013345,2]
[340799987,1729852242099,-2042.751956,0.00013345,2]
[340799988,1729852242109,-409.533245,0.00013345,2]
[340799989,1729852242118,-151.0,0.00013345,2]
[340799990,1729852242130,-409.533245,0.00013345,2]
[340799991,1729852242139,-528.0,0.00013345,2]
[340799992,1729852242148,-1151.0,0.00013345,2]
[340799993,1729852242158,-150.112233,0.000134,2]
[340799994,1729852242167,-150.112233,0.000134,2]
[340799995,1729852242177,-150.112233,0.000134,2]
[340799996,1729852242186,-150.112233,0.000134,2]
[340799997,1729852242196,-150.112233,0.000134,2]
[340799998,1729852242208,-178.360917,0.00013434,2]
[340799999,1729852242219,-409.620249,0.00013434,2]
[340800000,1729852242230,-183.503648,0.00013434,2]
[340800001,1729852242240,-233.049244,0.00013434,2]
[340800002,1729852242250,-403.20391,0.00013471,2]
[340800003,1729852242262,-403.20391,0.00013471,2]
[340800004,1729852242271,-248.326197,0.00013471,2]
[340800005,1729852242281,-248.326197,0.00013471,2]
[340800006,1729852242290,-164.301143,0.00013471,2]
[340800007,1729852242300,-164.301143,0.00013471,2]
[340800008,1729852242310,-150.112233,0.000135,2]
[340800009,1729852242320,-150.112233,0.000135,2]
[340800010,1729852242330,-150.112233,0.000135,2]
[340800011,1729852242340,-150.112233,0.000135,2]
[340800012,1729852242352,-150.112233,0.000135,2]
[340800013,1729852242362,-420.0,0.00013501,2]
[340800014,1729852242373,-2042.751956,0.00013531,2]
[340800015,1729852242382,-2042.751956,0.00013531,2]
[340800016,1729852242392,-409.533245,0.00013531,2]
[340800017,1729852242402,-151.0,0.00013531,2]
[340800018,1729852242411,-409.533245,0.00013531,2]
[340800019,1729852242421,-11377.8060427,0.00013531,2]
[340800020,1729852242430,-613.70393964,0.00013531,2]
[340800021,1729852242440,-497.580291,0.00013541,2]
[340800023,1729852242450,-497.580291,0.00013541,2]
[340800024,1729852242460,-497.580291,0.00013541,2]
[340800025,1729852242470,-497.580291,0.00013541,2]
[340800026,1729852242481,-403.893002,0.00013541,2]
[340800027,1729852242491,-403.893002,0.00013541,2]
[340800028,1729852242501,-999.114577,0.00013541,2]
[340800029,1729852242514,-999.114577,0.00013541,2]
[340800030,1729852242523,-999.114577,0.00013541,2]
[340800032,1729852242533,-999.114577,0.00013541,2]
[340800033,1729852242542,-403.20391,0.00013541,2]
[340800034,1729852242553,-403.20391,0.00013541,2]
[340800035,1729852242563,-443.041159,0.00013541,2]
[340800036,1729852242572,-443.041159,0.00013541,2]
[340800037,1729852242582,-443.041159,0.00013541,2]
[340800038,1729852242592,-443.04116,0.00013541,2]
[340800039,1729852242603,-275.352272,0.00013541,2]
[340800040,1729852242612,-275.352272,0.00013541,2]
[340800041,1729852242623,-275.352272,0.00013541,2]
[340800042,1729852242632,-275.352272,0.00013541,2]
[340800043,1729852242643,-248.326197,0.00013541,2]
[340800044,1729852242653,-248.326197,0.00013541,2]
[340800045,1729852242663,-151.0,0.00013541,2]
[340800046,1729852242672,-198.273856,0.00013541,2]
[340800047,1729852242682,-164.301143,0.00013541,2]
[340800048,1729852242691,-164.301143,0.00013541,2]
[340800049,1729852242701,-200.243423,0.00013541,2]
[340800050,1729852242710,-200.243423,0.00013541,2]
[340800051,1729852242720,-200.243423,0.00013541,2]
[340800052,1729852242730,-200.243421,0.00013541,2]
[340800053,1729852242739,-300.99481,0.00013541,2]
[340800054,1729852242749,-300.99481,0.00013541,2]
[340800055,1729852242759,-350.603163,0.00013541,2]
[340800056,1729852242768,-350.603163,0.00013541,2]
[340800057,1729852242778,-461.086155,0.00013541,2]
[340800058,1729852242787,-461.086155,0.00013541,2]
[340800059,1729852242797,-300.99481,0.00013541,2]
[340800060,1729852242805,-300.994802,0.00013541,2]
[340800061,1729852242815,-461.086155,0.00013541,2]
[340800062,1729852242824,-461.086149,0.00013541,2]
[340800063,1729852242834,-350.603163,0.00013541,2]
[340800064,1729852242844,-350.603166,0.00013541,2]
[340800065,1729852242854,-151.0,0.00013551,2]
[340800066,1729852242864,-173.519383,0.00013551,2]
[340800067,1729852242874,-173.519383,0.00013551,2]
[340800068,1729852242883,-173.519383,0.00013551,2]
[340800069,1729852242893,-173.519383,0.00013551,2]
[340800070,1729852242903,-151.0,0.00013551,2]
[340800072,1729852242913,-151.0,0.00013551,2]
[340800073,1729852242922,-151.0,0.00013551,2]
[340800074,1729852242932,-151.0,0.00013551,2]
[340800075,1729852242941,-241.748352,0.00013551,2]
[340800076,1729852242951,-241.748352,0.00013551,2]
[340800077,1729852242960,-241.748352,0.00013551,2]
[340800078,1729852242970,-241.748352,0.00013551,2]
[340800079,1729852242980,-403.20391,0.00013551,2]
[340800080,1729852242990,-403.20391,0.00013551,2]
[340800081,1729852243000,-248.326197,0.00013551,2]
[340800082,1729852243009,-248.326197,0.00013551,2]
[340800083,1729852243019,-164.301143,0.00013551,2]
[340800084,1729852243029,-164.301143,0.00013551,2]
[340800085,1729852243039,-2042.751956,0.00013551,2]
[340800086,1729852243049,-2042.751956,0.00013551,2]
[340800087,1729852243058,-2042.751956,0.00013551,2]
[340800088,1729852243069,-2042.751956,0.00013551,2]
[340800089,1729852243078,-409.533245,0.00013551,2]